Cogmind - Beta 17 @@@ ROGUE MODE // 2026.07.14 @ 13:18:04 Player: kite Result: Destroyed by as-83262 with Assembled Rifle Performance ------------- Evolutions (0) 0 Regions Visited (4) 800 Robots Destroyed (29) 145 Value Destroyed (518) 518 Prototype IDs (23) 460 Alien Tech Used (0) 0 Bonus (300) 300 TOTAL SCORE: 2223 Bonus ------- Aligned with FarCom 300 Cogmind --------- Core Integrity 0/250 Matter 259/300 Energy 125/125 System Corruption 0% Temperature Cool (4) Movement Treading (240) Ox1 Location -9/Mines Parts ------- > --- POWER (1) -------- Light Ion Engine > --- PROPULSION (2) --- Light Treads Light Treads > --- UTILITY (2) ------ High-capacity Storage Unit Structural Scanner > --- WEAPON (2) ------- Light Assault Rifle Makeshift Shrapnel Gun > --- INVENTORY (20) --- Light Ion Engine Light Treads Aluminum Leg Aluminum Leg Aluminum Leg Improved Heat Sink Large Storage Unit High-capacity Storage Unit Medium Matter Pod (57) Seismic Detector Small Laser AWS/Thermal Light Assault Rifle Grenade Launcher Rocket Launcher Peak State ------------ > --- POWER ------------ Light Ion Engine > --- PROPULSION ------- Light Treads Light Treads > --- UTILITY ---------- Improved Heat Sink Large Storage Unit > --- WEAPON ----------- Small Laser Makeshift Shrapnel Gun > --- INVENTORY -------- Ion Engine Light Ion Engine Light Ion Engine Light Treads Aluminum Leg Aluminum Leg Aluminum Leg Small Storage Unit Medium Matter Pod Structural Scanner Seismic Detector Small Laser Light Assault Rifle Light Assault Rifle Grenade Launcher [Rating: 13] Favorites ----------- Power Light Ion Engine Engine Light Ion Engine Propulsion Light Treads Treads Light Treads Utility Large Storage Unit Device Structural Scanner Storage Large Storage Unit Protection Backup Plating I Weapon Light Assault Rifle Energy Gun Small Laser Ballistic Gun Light Assault Rifle Launcher Grenade Launcher Build | -11 -10 -10 -10 -9 ------- Run | Yrd Mat Min Exi Min Slots Evolved . | . . . . . Power . | . . . . . Propulsion . | . . . . . Utility . | . . . . . Weapon . | . . . . . Parts Attached 17 | 7 2 7 1 . Power 2 | 1 . 1 . . Engine 2 | 1 . 1 . . Core . | . . . . . Reactor . | . . . . . Propulsion 2 | 2 . . . . Treads 2 | 2 . . . . Leg . | . . . . . Wheel . | . . . . . Hover . | . . . . . Flight . | . . . . . Utility 6 | 2 1 2 1 . Device 3 | 1 . 2 . . Storage 3 | 1 1 . 1 . Processor . | . . . . . Hackware . | . . . . . Protection . | . . . . . Artifact . | . . . . . Weapon 7 | 2 1 4 . . Energy Gun 2 | . . 2 . . Energy Cannon . | . . . . . Ballistic Gun 4 | 2 . 2 . . Ballistic Cannon . | . . . . . Launcher 1 | . 1 . . . Special Weapon . | . . . . . Impact Weapon . | . . . . . Slashing Weapon . | . . . . . Piercing Weapon . | . . . . . Special Melee Weapon . | . . . . . Unidentified Prototypes . | . . . . . Parts Lost 3 | . . 3 . . Power 1 | . . 1 . . Propulsion . | . . . . . Utility 1 | . . 1 . . Weapon 1 | . . 1 . . Highest Loss Streak 2 | . . 2 . . To Critical Strikes 1 | . . 1 . . Average Backups 12 | 1 8 14 14 15 Power 1 | . 1 2 2 1 Propulsion 3 | . 2 3 4 4 Utility 3 | . 3 4 4 5 Weapon 3 | . 1 4 4 5 Tool/Special . | . . . . . Unused Backups 11 | . . . 2 9 Power 3 | . . . 2 1 Propulsion 4 | . . . . 4 Utility 2 | . . . . 2 Weapon 2 | . . . . 2 Tool/Special . | . . . . . Average Slot Usage (%) 99 | . 99 99 100 100 Engine 13 | . 14 13 14 14 Treads 28 | . 28 28 28 28 Device 9 | . . 13 14 14 Storage 14 | . 14 14 14 14 Protection 4 | . 13 . . . Energy Gun 2 | . . 7 . . Ballistic Gun 24 | . 27 20 28 28 Peak Build Rating 13 | 7 8 13 13 13 Average Rating 9 | 4 7 10 12 13 On Entrance 7 | . 7 8 11 13 Avg Prop Armor Cover (%) . | . . . . . Naked Turns . | . . . . . Heaviest Build 47 | 12 29 27 47 47 Greatest Support 40 | 40 40 40 40 40 Greatest Overweight (x) 1 | . . . 1 1 Average Overweight (x) . | . . . . 1 Largest Inventory Capacity 20 | 8 15 15 20 20 Average Capacity 15 | 6 14 15 15 20 Most Carried 16 | 3 14 15 16 16 Average Carried 12 | 1 8 14 15 16 Final Capacity 20 | 8 15 15 20 20 Final Carried 16 | 3 14 15 16 16 Class Distribution -------------------- 95% | Mutant 4% | Scavenger-Mutant Dominant Class ---------------- Mutant | -10/Materials Mutant | -10/Mines Mutant | -10/Exiles Mutant | -9/Mines Resources | -11 -10 -10 -10 -9 ----------- Run | Yrd Mat Min Exi Min Matter Collected 730 | 107 321 285 . 17 Remotely . | . . . . . Salvage Created 877 | 107 438 315 . 17 Parts 61 | 6 36 19 . . Haulers Intercepted 2 | . 2 . . . Recyclers Shooed 1 | . 1 . . . Parts Field Recycled . | . . . . . Retrieved Matter . | . . . . . Parts Self-Destructed . | . . . . . Prevented . | . . . . . Parts Restored . | . . . . . Kills | -11 -10 -10 -10 -9 ------- Run | Yrd Mat Min Exi Min Combat Hostiles Destroyed 19 | . 8 9 . 2 Guns 17 | . 6 9 . 2 AOE 2 | . 2 . . . Classes Destroyed 9 | 2 5 1 . 1 Worker 2 | . . 2 . . Builder 2 | . 2 . . . Tunneler 2 | 2 . . . . Hauler 2 | . 2 . . . Recycler 2 | 1 1 . . . Watcher 2 | . 2 . . . Swarmer 9 | . 6 3 . . Grunt 8 | . 2 6 . . Assembled 2 | . . . . 2 Best Kill Streak 4 | 3 3 4 . 2 Combat Bots Only 3 | . 3 3 . 2 Max Kills in Single Turn 2 | 1 2 1 . 1 Gunslinging . | . . . . . Exploded 2 | . 2 . . . Melee . | . . . . . Uniques/NPCs Destroyed . | . . . . . Combat | -11 -10 -10 -10 -9 -------- Run | Yrd Mat Min Exi Min Hostile Shots Fired 81 | . 29 41 . 11 Missed 17 | . 7 7 . 3 Hits 64 | . 22 34 . 8 Projectile 64 | . 22 34 . 8 Critical Strikes 1 | . . 1 . . Damage Taken 845 | . 292 426 . 127 Core 263 | . 95 112 . 56 Absorbed by Shields . | . . . . . Core Remaining (%) 100 | 100 . . . . Volleys Fired 78 | 9 33 28 . 8 Largest 2 | 2 2 2 . 2 Hottest 80 | 40 40 80 . 44 Shots Fired 154 | 18 65 55 . 16 Gun 153 | 18 64 55 . 16 Cannon . | . . . . . Launcher 1 | . 1 . . . Special . | . . . . . Kinetic 143 | 18 64 45 . 16 Thermal 10 | . . 10 . . Explosive 1 | . 1 . . . Electromagnetic . | . . . . . Robot Hit Streak 11 | 5 11 7 . 3 Robot Miss Streak 5 | 1 3 3 . 5 Penetration Max . | . . . . . Secondary Targets 1 | . . 1 . . Max Gunslinging Chain 1 | . . 1 . . Shots Hit Robots 101 | 12 43 35 . 11 Core Hits 51 | 5 22 21 . 3 Critical Kills . | . . . . . Critical Parts Destroyed . | . . . . . Critical Strikes . | . . . . . Melee Attacks . | . . . . . Impact . | . . . . . Slashing . | . . . . . Piercing . | . . . . . Sneak Attacks . | . . . . . Combat Hostiles . | . . . . . Follow-up Attacks . | . . . . . Damage Inflicted 1300 | 127 583 480 . 110 Guns 1196 | 127 479 480 . 110 Cannons . | . . . . . Explosions 104 | . 104 . . . Melee . | . . . . . Ramming . | . . . . . Kinetic 1130 | 127 479 414 . 110 Thermal 66 | . . 66 . . Explosive 104 | . 104 . . . Electromagnetic . | . . . . . Impact . | . . . . . Slashing . | . . . . . Piercing . | . . . . . Highest Corruption . | . . . . . Average Corruption . | . . . . . Corruption Purged . | . . . . . Corruption Blocked . | . . . . . Overload Shots . | . . . . . Overflow Damage 7 | . 7 . . . Projectiles . | . . . . . Explosions 7 | . 7 . . . Melee . | . . . . . Knockbacks . | . . . . . Impact . | . . . . . Kinetic . | . . . . . Secondary . | . . . . . Self-Inflicted Damage . | . . . . . Shots . | . . . . . Rammed . | . . . . . Targets Rammed . | . . . . . Kicked . | . . . . . Crushed . | . . . . . Highest Temperature 26 | . 23 26 . 8 Average Temperature 5 | . 4 7 . 3 Received Heat Transfer 303 | . 99 204 . . Siege Activations . | . . . . . Martial Activations . | . . . . . Shielding Activations . | . . . . . Robots Disrupted . | . . . . . Combat Hostiles . | . . . . . Robots Corrupted . | . . . . . Combat Hostiles . | . . . . . Parts Fried . | . . . . . Impact Corruptions . | . . . . . Robots Melted . | . . . . . Combat Hostiles . | . . . . . Parts Melted . | . . . . . Heat Transferred 150 | . . 150 . . Parts Sabotaged . | . . . . . Parts Stolen . | . . . . . Parts Stripped . | . . . . . Power Chain Reactions . | . . . . . Alert | -11 -10 -10 -10 -9 ------- Run | Yrd Mat Min Exi Min Maximum Alert Level . | . . . . . Low Security (%) 100 | 100 100 100 . 100 Level 1 . | . . . . . Level 2 . | . . . . . Level 3 . | . . . . . Level 4 . | . . . . . Level 5 . | . . . . . High Security . | . . . . . Max Security . | . . . . . Peak Influence 85 | 10 85 65 . . Initial 17 | . . 17 . . Average 18 | 1 29 14 . . Influence Increases 564 | 15 272 277 . . Destroy 0b10 Robot/C 340 | . 160 180 . . Destroy 0b10 Robot/NC 60 | 15 35 10 . . Destroy Leader 78 | . 38 40 . . Allied During Kill 2 | . . 2 . . Successful Hack 13 | . 13 . . . Disable Machine 45 | . . 45 . . Destroy Structure 11 | . 11 . . . Lose Combat Pursuer 15 | . 15 . . . Influence Decreases 564 | 15 227 275 47 . Entered New Map 75 | . . 28 47 . Time Decay 439 | 15 227 197 . . Lost Part 30 | . . 30 . . Lost Ally 20 | . . 20 . . Squads Dispatched . | . . . . . Investigation . | . . . . . Extermination . | . . . . . Reinforcement . | . . . . . Assault . | . . . . . Garrison . | . . . . . Intercept . | . . . . . Searches Triggered . | . . . . . Construction Impeded . | . . . . . Haulers Reinforced . | . . . . . Active Scanning Responses . | . . . . . Cargo Convoy Interrupts . | . . . . . Stealth | -11 -10 -10 -10 -9 --------- Run | Yrd Mat Min Exi Min Distress Signals 1 | . . . . 1 Communications Jammed . | . . . . . Distress Signals . | . . . . . Times Spotted 35 | . 17 9 . 9 Peak Tracking Total 6 | . 4 3 . 6 Tactical Retreats 2 | . 1 . . 1 Traps | -11 -10 -10 -10 -9 ------- Run | Yrd Mat Min Exi Min Traps Triggered 1 | . 1 . . . Indirectly . | . . . . . Trap Hack Attempts . | . . . . . Triggered . | . . . . . Disarmed . | . . . . . Reprogrammed . | . . . . . Reused . | . . . . . Traps Extracted . | . . . . . Installed . | . . . . . Triggered . | . . . . . Machines | -11 -10 -10 -10 -9 ---------- Run | Yrd Mat Min Exi Min Machines Disabled 3 | . . 3 . . Max in Single Turn 1 | . . 1 . . Machines Repaired . | . . . . . Machines Dismantled . | . . . . . Machines Sabotaged . | . . . . . Overloaded Fab Kills . | . . . . . Hacking | -11 -10 -10 -10 -9 --------- Run | Yrd Mat Min Exi Min Machines Accessed 9 | . 7 . 2 . Terminals 6 | . 6 . . . Fabricators . | . . . . . Repair Stations 1 | . 1 . . . Recycling Units . | . . . . . Scanalyzers . | . . . . . Garrison Access . | . . . . . Total Hacks 14 | . 9 . 5 . Successful 8 | . 3 . 5 . Failed 6 | . 6 . . . Catastrophic 2 | . 2 . . . Database Lockouts . | . . . . . Manual 9 | . 8 . 1 . Terminals 7 | . 7 . . . Fabricators . | . . . . . Repair Stations 2 | . 2 . . . Recycling Units . | . . . . . Scanalyzers . | . . . . . Garrison Access . | . . . . . Terminal Hacks 6 | . 1 . 5 . Record 4 | . . . 4 . Part Schematic 1 | . 1 . . . Proto ID Catalog 1 | . . . 1 . Fabricator Hacks . | . . . . . Repair Station Hacks 1 | . 1 . . . Refit 1 | . 1 . . . Recycling Unit Hacks . | . . . . . Scanalyzer . | . . . . . Garrison Access Hacks . | . . . . . Unauthorized Hacks 1 | . 1 . . . Terminals . | . . . . . Fabricators . | . . . . . Repair Stations 1 | . 1 . . . Mechanics 1 | . 1 . . . Recycling Units . | . . . . . Scanalyzers . | . . . . . Garrison Access . | . . . . . Data Cores Recovered . | . . . . . Used . | . . . . . Hacking Detections 6 | . 6 . . . Full Trace Events . | . . . . . Feedback Events . | . . . . . Feedback Blocked . | . . . . . Robot Schematics Acquired . | . . . . . Robots Built . | . . . . . Authchips . | . . . . . Time . | . . . . . Total Robot Build Rating . | . . . . . Part Schematics Acquired 1 | . 1 . . . Parts Built . | . . . . . Authchips . | . . . . . Time . | . . . . . Total Part Build Rating . | . . . . . Part Studies Acquired . | . . . . . Parts Repaired . | . . . . . Time . | . . . . . Parts Recycled . | . . . . . Recycled Matter . | . . . . . Retrieved Matter . | . . . . . Retrieved Components . | . . . . . Parts Scanalyzed . | . . . . . Part Schematics Acquired . | . . . . . Parts Damaged . | . . . . . Bothacking | -11 -10 -10 -10 -9 ------------ Run | Yrd Mat Min Exi Min Used RIF Installer . | . . . . . Robots Hacked . | . . . . . Non-combat . | . . . . . Combat . | . . . . . Robot Hacks Applied . | . . . . . Relay Couplers Released . | . . . . . Fabnet Peak Effective % . | . . . . . Robots Rewired . | . . . . . Allies Hacked . | . . . . . Hacks Repelled . | . . . . . Allies | -11 -10 -10 -10 -9 -------- Run | Yrd Mat Min Exi Min Total Allies 2 | . . 2 . . Largest Group 2 | . . 2 . . Highest-Rated Group 47 | . . 47 . . Highest-Rated Ally 31 | . . 31 . . Total Orders . | . . . . . Ally Attacks 8 | . . 8 . . Total Damage 84 | . . 84 . . Kills . | . . . . . Allies Corrupted . | . . . . . Allies Melted . | . . . . . Intel | -11 -10 -10 -10 -9 ------- Run | Yrd Mat Min Exi Min Active Infowar (turns) 1203 | 14 8 610 388 183 Structural 1181 | . . 610 388 183 Seismic 22 | 14 8 . . . Robot Analysis Total . | . . . . . Derelict Logs Recovered 3 | . . 2 . 1 Drone Launches . | . . . . . Drone Recoveries . | . . . . . Exploration | -11 -10 -10 -10 -9 ------------- Run | Yrd Mat Min Exi Min Turns Passed 2336 | 120 716 929 388 183 Spaces Moved 1229 | 54 369 517 226 63 Core 4 | 4 . . . . Treads 1225 | 50 369 517 226 63 Legs . | . . . . . Wheels . | . . . . . Hover . | . . . . . Flight . | . . . . . Fastest Speed 50 | 50 160 160 160 240 Average Speed 165 | 151 160 160 170 240 Slowest Speed 240 | 160 160 160 240 240 Overloaded Moves . | . . . . . Propulsion Burnouts . | . . . . . Robots Hopped . | . . . . . Potential Cave-ins . | . . . . . Cave-ins Triggered . | . . . . . Exploration Rate (%) 43 | 5 42 87 59 26 Regions Visited 4 Branch Regions 3 Pre-discovered Areas 2 | . . 1 1 . Known Exits Taken . | . . . . . Unknown Exits Taken 4 | 1 1 1 1 . Scrap Searched 1 | . . 1 . . Spaces Dug . | . . . . . Terrain Destroyed 9 | . 9 . . . Melee . | . . . . . Projectile . | . . . . . AOE 9 | . 9 . . . Terrain Rammed . | . . . . . Walls Destroyed . | . . . . . Machines Disabled . | . . . . . Actions | -11 -10 -10 -10 -9 --------- Run | Yrd Mat Min Exi Min Total 1388 | 72 435 569 231 81 Wait 39 | . 21 8 . 10 Move 1225 | 53 368 516 225 63 Hop . | . . . . . Pick Up 19 | 3 9 5 2 . Fast Attach 9 | 7 . 2 . . Attach 2 | . . 2 . . Detach 2 | . 1 1 . . Swap 8 | . 3 4 1 . Drop 6 | . . 3 3 . Fire 78 | 9 33 28 . 8 Melee . | . . . . . Ram . | . . . . . Kick . | . . . . . Crush . | . . . . . Escape Stasis . | . . . . . Rewire . | . . . . . Trap . | . . . . . Miscellaneous . | . . . . . Route ------- -11/Scrapyard -10/Materials (discovered 2 exits: [*Min] / [*Sub]) -10/Mines (discovered 2 exits: [*Mat] / *Exi) -10/Exiles -9/Mines History --------- Turn | Location | Event 60 | -11/Scrapyard | Discovered new exit (range 15) 121 | -11/Scrapyard | Entered Materials 315 | -10/Materials | Build established: Mutant 345 | -10/Materials | Discovered new exit (range 12) 510 | -10/Materials | Discovered new exit (range 10) 837 | -10/Materials | Entered Mines 867 | -10/Mines | Core integrity fell below 50% 979 | -10/Mines | Found a Scrap Suit stashed away for nefarious purposes 1109 | -10/Mines | A weapon hastily lodged in a ceiling crevice suddenly fell to the ground 1541 | -10/Mines | Discovered new exit (range 15) 1613 | -10/Mines | Received a Rocket Launcher from a helpful Derelict 1634 | -10/Mines | Learned Materials stockpile data 1703 | -10/Mines | Core integrity fell below 20% 1758 | -10/Mines | Deemed a non-threat by the Exiles lab entrance 1758 | -10/Mines | Discovered new exit (range 5) 1766 | -10/Mines | Entered Exiles 1803 | -10/Exiles | Met 8R-AWN 1832 | -10/Exiles | Met EX-HEX 1878 | -10/Exiles | Met EX-BIN 1898 | -10/Exiles | Aligned with FarCom system 1899 | -10/Exiles | Given EX-Vault access code 1939 | -10/Exiles | Opened EX-Vault 1950 | -10/Exiles | Found AWS/Thermal 1984 | -10/Exiles | Warned to stay clear of 0b10 Research branches 2006 | -10/Exiles | Exiles lab attacked by MAIN.C 2037 | -10/Exiles | Learned location of Zion (-6) 2133 | -10/Exiles | Discovered new exit (range 11) 2154 | -10/Exiles | Left Exiles lab with AWS/Thermal 2154 | -10/Exiles | Entered Mines 2172 | -9/Mines | Assembled infested the area 2337 | -9/Mines | Destroyed by as-83262 with Assembled Rifle Last Messages --------------- 02139_ J5-HVA exits level. 02144_ DK-RAY exits level. 02148_ ZX-C33 exits level. 02151_ 5L-KAT exits level. LOCATION=UNKNOWN GOAL=ESCAPE 02154_ Receiving FarCom transmissions... 02156_ AM-PHS: "That was close. Too bad in all the rush we got split up from the others." 02171_ AM-PHS: "Oh no, it's like what happened to the Exiles when they were wandering homeless, only there's no Warlord to save us!" 02172_ ALERT: Infestation in the mines, dispatching Demolisher response squad. 02226_ Acquired derelict log, extracted data. Data stored: Storage entrances (x1). 02266_ as-65660 destroyed. 02274_ as-38737 destroyed. 02279_ Acquired 17 matter. 02309_ The unstable cave ceiling collapses. Map ----- +----------------------------------------------------+ | ??????????????## ##?????????????? | | ?????????####### ##?????????????? | | ?????????####### ##?????????????? | | ?????????## ##?????????????? | | ?????????## #######?????????????? | | ?????????## ###### ?????????????? | | ????????### ####????????###?????? | | ???????#### ##### ???? ##?????? | | ???????### # #### ####?????? | | ???????## # ??###???????? | | ???????## # # # ???###???????? | | ???????## ### ## ##???????? | | ???????## %=% % ##???????? | | ??????##### #### ###???????? | | ?????#### # !# # ###????????? | | ????#### % #####?????????? | | ???#### % ####????????????? | | ???### = ### %####????????????? | | ???## !%####%[##??????????????? | | ???## !###?%*##??????????????? | | ???## z ##??!=##?????????????? | | ???### ##??*%##?????????????? | | ??#### ##??!!##?????????????? | | ??### ##??? ##?????????????? | | ??## ##??? ##?????????????? | | ?### @ ###??? ##?????????????? | | ?## ###???????????????????? | | ?## ###??????????????????? | | ?### a ##??????????????????? | | ?### ##??????????????????? | | ??### ##??????????????????? | | ??#### ###??????????????????? | | ???#### ####??????????????????? | | ????### ###???????????????????? | | ?????## ##????????????????????? | | ?????## a##????????????????????? | | ?????# #????????????????????? | | ?????? ?????????????????????? | | ??????"" ?????????????????????? | | ??????"" a ?????????????????????? | | ???????? ?????????????????????? | | ????????????????????????????????? | | ????????????????????????????????? | | ????????????????????????????????? | | ????????????????????????????????? | | ????????????????????????????????? | | ????????????????????????????????? | | ????????????????????????????????? | | ????????????????????????????????? | | ????????????????????????????????? | +----------------------------------------------------+ Best States ------------- Heat Dissipation 39 Energy Generation 10 Energy Capacity 125 Matter Stores 300 Matter Capacity 300 Sight Range 16 Terrain Scan Density 10 Armor Coverage 80 Evasion (%) 40 Recoil Reduction 2 Item Schematics ----------------- Huge Storage Unit | -10/Materials | Hacked Robot Schematics ------------------ None Fabricated ------------ Nothing Repaired ---------- Nothing Studied --------- None Alien Tech Used ----------------- None Achievements -------------- None Challenges ------------ None Game ------ Seed MetafiberHypertargetingField Manual? 0 Play Time 00:08:32 Cumulative 454.9 hours Start 2026.07.14 @ 13:10:09 End 2026.07.14 @ 13:18:04 Sessions 1 Manual Loads 0 Difficulty Rogue Special Mode None Game No. 421 Rogue 421 Adventurer 0 Explorer 0 Win Type - Total 11 Types 7/0/2/1/0/0/0/0/0/1 Lore% 61 Gallery% 69 Achievement% 65 Wizard Run 0 Options --------- Layout 1 ASCII 0 Keyboard 0 Movement Mouse Keybinds 0 Fullscreen 2 Font 24/Cog Map View 50x35 Zoom Use 18% Tactical HUD 1 Map Filters NONE Filters NONE Steam 1 RUN: 675881eb-9314-4181-9a5d-27d42f2492dc